[Event "*** Titled Tuesday Blitz"]
[Site "Chess.com"]
[Date "2020.04.07"]
[Round "3"]
[White "Eloist"]
[Black "AlleyOoper"]
[Result "0-1"]
[WhiteElo "2262"]
[BlackElo "2490"]
[TimeControl "180+1"]
[EndTime "13:31:12 PDT"]
[Termination "AlleyOoper won by resignation"]

1. e4 {[%clk 0:03:00.9]} 1... c6 {[%clk 0:02:59.3]} 2. Nf3 {[%clk 0:03:00.2]}
2... d5 {[%clk 0:02:56.7]} 3. Nc3 {[%clk 0:03:00.4]} 3... dxe4 {[%clk
0:02:29.8]} 4. Nxe4 {[%clk 0:02:58.7]} 4... Nf6 {[%clk 0:02:30.4]} 5. Qe2 {[%clk
0:02:57.9]} 5... Nxe4 {[%clk 0:02:27.8]} 6. Qxe4 {[%clk 0:02:57.2]} 6... Nd7
{[%clk 0:02:28.4]} 7. Bc4 {[%clk 0:02:56]} 7... Nf6 {[%clk 0:02:28.9]} 8. Ne5
{[%clk 0:02:56]} 8... e6 {[%clk 0:02:29.5]} 9. Qe2 {[%clk 0:02:55.8]} 9... Qc7
{[%clk 0:02:27]} 10. O-O {[%clk 0:02:54.5]} 10... b5 {[%clk 0:02:27.6]} 11. Bb3
{[%clk 0:02:51.1]} 11... Bd6 {[%clk 0:02:25.6]} 12. d4 {[%clk 0:02:47.1]} 12...
O-O {[%clk 0:02:25.7]} 13. a4 {[%clk 0:02:43.7]} 13... a6 {[%clk 0:02:25]} 14.
Bg5 {[%clk 0:02:36.2]} 14... Nd5 {[%clk 0:02:17.6]} 15. Nf3 {[%clk 0:02:14.4]}
15... Nf4 {[%clk 0:02:09.3]} 16. Qd2 {[%clk 0:02:04]} 16... h6 {[%clk
0:02:04.7]} 17. Bh4 {[%clk 0:02:03.5]} 17... Bb7 {[%clk 0:02:02.4]} 18. c4
{[%clk 0:02:00.5]} 18... c5 {[%clk 0:01:52.6]} 19. dxc5 {[%clk 0:01:52]} 19...
Qxc5 {[%clk 0:01:48.8]} 20. Qe3 {[%clk 0:01:23.4]} 20... bxc4 {[%clk 0:01:26.5]}
21. Qxc5 {[%clk 0:01:17.7]} 21... Bxc5 {[%clk 0:01:25.4]} 22. Bxc4 {[%clk
0:01:17.6]} 22... Rfc8 {[%clk 0:01:17.4]} 23. Rac1 {[%clk 0:01:13.8]} 23... Bxf3
{[%clk 0:01:12.7]} 24. gxf3 {[%clk 0:01:13.2]} 24... Bd4 {[%clk 0:01:10.7]} 25.
b3 {[%clk 0:01:06.5]} 25... Ng6 {[%clk 0:00:45.4]} 26. Bg3 {[%clk 0:01:04.3]}
26... Ne5 {[%clk 0:00:45.6]} 27. Be2 {[%clk 0:00:54.4]} 27... a5 {[%clk
0:00:37.5]} 28. f4 {[%clk 0:00:51.5]} 28... Nc6 {[%clk 0:00:35.8]} 29. Bf3
{[%clk 0:00:48.4]} 29... Ra6 {[%clk 0:00:29.4]} 30. Rc4 {[%clk 0:00:48.1]} 30...
Bb2 {[%clk 0:00:22]} 31. Rd1 {[%clk 0:00:33.3]} 31... Ba3 {[%clk 0:00:19.5]} 32.
Rd2 {[%clk 0:00:28]} 32... Rc7 {[%clk 0:00:11.1]} 33. Rdc2 {[%clk 0:00:27.4]}
33... Nd4 {[%clk 0:00:11.4]} 34. Rxc7 {[%clk 0:00:26.8]} 34... Nxf3+ {[%clk
0:00:11.6]} 35. Kg2 {[%clk 0:00:27.1]} 35... Ne1+ {[%clk 0:00:11.9]} 36. Kf1
{[%clk 0:00:25.8]} 36... Nxc2 {[%clk 0:00:12.8]} 37. Rxc2 {[%clk 0:00:25.5]}
37... Rb6 {[%clk 0:00:13.4]} 38. Rc3 {[%clk 0:00:23.1]} 38... Bb2 {[%clk
0:00:13.2]} 39. Rd3 {[%clk 0:00:23]} 39... Ba3 {[%clk 0:00:12.8]} 40. Ke2 {[%clk
0:00:22.8]} 40... Bb4 {[%clk 0:00:13.2]} 41. Ke3 {[%clk 0:00:17.8]} 41... f5
{[%clk 0:00:13.3]} 42. Kd4 {[%clk 0:00:17.3]} 42... Kf7 {[%clk 0:00:13.7]} 43.
Kc4 {[%clk 0:00:16.7]} 43... Rc6+ {[%clk 0:00:13.6]} 44. Kb5 {[%clk 0:00:15.6]}
44... Rc5+ {[%clk 0:00:14]} 45. Kb6 {[%clk 0:00:15.1]} 45... Rc8 {[%clk
0:00:12.1]} 46. Kb7 {[%clk 0:00:14.1]} 46... Rc3 {[%clk 0:00:11.7]} 47. Rxc3
{[%clk 0:00:13.2]} 47... Bxc3 {[%clk 0:00:12]} 48. f3 {[%clk 0:00:12.9]} 48...
Bd2 {[%clk 0:00:11]} 49. Kb6 {[%clk 0:00:12.3]} 49... Kf6 {[%clk 0:00:10.3]} 50.
h3 {[%clk 0:00:11.8]} 50... Ke7 {[%clk 0:00:10.3]} 51. Bf2 {[%clk 0:00:11]}
51... Kd6 {[%clk 0:00:10.5]} 52. Bd4 {[%clk 0:00:10.6]} 52... g6 {[%clk
0:00:09.4]} 53. Be5+ {[%clk 0:00:08.8]} 53... Kd5 {[%clk 0:00:09.6]} 54. Kb5
{[%clk 0:00:08.9]} 54... g5 {[%clk 0:00:09.4]} 55. Bc7 {[%clk 0:00:06.8]} 55...
gxf4 {[%clk 0:00:09.2]} 56. Bxa5 {[%clk 0:00:06.4]} 56... Be3 {[%clk 0:00:09.9]}
57. Bc3 {[%clk 0:00:04.7]} 57... e5 {[%clk 0:00:09]} 58. a5 {[%clk 0:00:04.7]}
58... e4 {[%clk 0:00:09.5]} 59. a6 {[%clk 0:00:03.8]} 59... exf3 {[%clk
0:00:09.7]} 60. Be1 {[%clk 0:00:03.9]} 60... f2 {[%clk 0:00:10.2]} 61. Bxf2
{[%clk 0:00:03.7]} 61... Bxf2 {[%clk 0:00:11.1]} 62. b4 {[%clk 0:00:03.4]} 62...
Ba7 {[%clk 0:00:11]} 63. Ka5 {[%clk 0:00:03.2]} 63... f3 {[%clk 0:00:11.4]} 64.
b5 {[%clk 0:00:04.1]} 64... Kc5 {[%clk 0:00:10.6]} 65. b6 {[%clk 0:00:05]} 65...
Bxb6+ {[%clk 0:00:10.4]} 66. Ka4 {[%clk 0:00:05.6]} 66... Ba7 {[%clk 0:00:10.9]}
67. Kb3 {[%clk 0:00:04.9]} 67... f2 {[%clk 0:00:11.4]} 68. Kc3 {[%clk
0:00:05.8]} 68... f1=Q {[%clk 0:00:11.2]} 69. Kd2 {[%clk 0:00:05.2]} 69... Qc4
{[%clk 0:00:11.8]} 0-1

[Event "*** Titled Tuesday Blitz"]
[Site "Chess.com"]
[Date "2020.04.07"]
[Round "3"]
[White "Kaua18"]
[Black "Pudor"]
[Result "1-0"]
[WhiteElo "2168"]
[BlackElo "2358"]
[TimeControl "180+1"]
[EndTime "13:31:12 PDT"]
[Termination "Kaua18 won by resignation"]

1. e4 {[%clk 0:03:00.9]} 1... c5 {[%clk 0:02:59.3]} 2. Nf3 {[%clk 0:03:01.2]}
2... Nc6 {[%clk 0:02:58.6]} 3. d4 {[%clk 0:03:01.8]} 3... cxd4 {[%clk
0:02:58.7]} 4. Nxd4 {[%clk 0:03:02.7]} 4... Qc7 {[%clk 0:02:59.1]} 5. Be2 {[%clk
0:03:01.4]} 5... Nf6 {[%clk 0:02:58.5]} 6. Nc3 {[%clk 0:03:00]} 6... e6 {[%clk
0:02:58.4]} 7. O-O {[%clk 0:02:59.6]} 7... a6 {[%clk 0:02:58.6]} 8. Be3 {[%clk
0:02:58.5]} 8... Be7 {[%clk 0:02:58.2]} 9. a4 {[%clk 0:02:54.9]} 9... O-O {[%clk
0:02:56.9]} 10. Kh1 {[%clk 0:02:54.4]} 10... d6 {[%clk 0:02:56.8]} 11. f4 {[%clk
0:02:51.5]} 11... Rd8 {[%clk 0:02:53.9]} 12. Nb3 {[%clk 0:02:49.4]} 12... b6
{[%clk 0:02:50.2]} 13. Bf3 {[%clk 0:02:49.1]} 13... Bb7 {[%clk 0:02:49.4]} 14.
Qe1 {[%clk 0:02:49.3]} 14... Nb4 {[%clk 0:02:47.7]} 15. Qf2 {[%clk 0:02:46.3]}
15... Nd7 {[%clk 0:02:40]} 16. Rad1 {[%clk 0:02:22]} 16... Nc5 {[%clk
0:02:26.3]} 17. Rd4 {[%clk 0:01:59.3]} 17... Nc6 {[%clk 0:01:48.7]} 18. Rd2
{[%clk 0:01:46]} 18... Bf6 {[%clk 0:01:42.5]} 19. g4 {[%clk 0:01:21.5]} 19...
Rac8 {[%clk 0:01:28.1]} 20. g5 {[%clk 0:01:21.2]} 20... Bxc3 {[%clk 0:01:28]}
21. bxc3 {[%clk 0:01:21.1]} 21... Nxa4 {[%clk 0:01:28.5]} 22. Ra1 {[%clk
0:01:16.8]} 22... b5 {[%clk 0:01:22.6]} 23. Rxa4 {[%clk 0:01:07.5]} 23... bxa4
{[%clk 0:01:23.5]} 24. Bb6 {[%clk 0:01:07.3]} 24... Qb8 {[%clk 0:01:16.3]} 25.
Bxd8 {[%clk 0:01:06.6]} 25... axb3 {[%clk 0:01:11.2]} 26. Bb6 {[%clk 0:01:04]}
26... b2 {[%clk 0:01:03.5]} 27. Rd1 {[%clk 0:01:04.2]} 27... Ne7 {[%clk
0:00:34.1]} 28. Rb1 {[%clk 0:00:38.7]} 28... Rxc3 {[%clk 0:00:32.4]} 29. Bd4
{[%clk 0:00:38.8]} 29... Rc8 {[%clk 0:00:19.8]} 30. Rxb2 {[%clk 0:00:38.3]}
30... Qa8 {[%clk 0:00:20.3]} 31. Qg2 {[%clk 0:00:35.7]} 31... Nc6 {[%clk
0:00:19.6]} 32. Bf2 {[%clk 0:00:32.8]} 32... Na5 {[%clk 0:00:19.5]} 33. Kg1
{[%clk 0:00:28.3]} 33... Nc4 {[%clk 0:00:19.5]} 34. Ra2 {[%clk 0:00:28.5]} 34...
Nd2 {[%clk 0:00:18.9]} 35. Ra4 {[%clk 0:00:23.4]} 35... Rxc2 {[%clk 0:00:17.5]}
36. Be3 {[%clk 0:00:19.4]} 36... Nxf3+ {[%clk 0:00:13.9]} 37. Qxf3 {[%clk
0:00:20.3]} 37... Qc8 {[%clk 0:00:13.7]} 38. Ra1 {[%clk 0:00:16.6]} 38... Rc4
{[%clk 0:00:13.3]} 39. Qd1 {[%clk 0:00:13.5]} 39... Bxe4 {[%clk 0:00:12]} 40.
Qxd6 {[%clk 0:00:12.5]} 40... Bb7 {[%clk 0:00:11.6]} 41. Rd1 {[%clk 0:00:12.1]}
41... g6 {[%clk 0:00:06.4]} 42. Bd4 {[%clk 0:00:12]} 42... Rc6 {[%clk
0:00:04.2]} 43. Qe7 {[%clk 0:00:11.1]} 43... Rc2 {[%clk 0:00:03.5]} 44. Bf2
{[%clk 0:00:04.9]} 44... Bd5 {[%clk 0:00:01.6]} 45. Qf6 {[%clk 0:00:03.6]} 45...
Kf8 {[%clk 0:00:00.7]} 46. Qh8+ {[%clk 0:00:01.7]} 46... Ke7 {[%clk 0:00:01.6]}
47. Qf6+ {[%clk 0:00:02.1]} 47... Kf8 {[%clk 0:00:01.5]} 48. Ra1 {[%clk
0:00:02]} 48... Be4 {[%clk 0:00:01.2]} 49. Bd4 {[%clk 0:00:01.3]} 49... Rc1+
{[%clk 0:00:02.1]} 50. Kf2 {[%clk 0:00:01.3]} 50... Rc2+ {[%clk 0:00:02.1]} 51.
Ke3 {[%clk 0:00:01.6]} 51... Rc3+ {[%clk 0:00:02.5]} 52. Kxe4 {[%clk 0:00:02]}
52... Re3+ {[%clk 0:00:02.1]} 53. Kxe3 {[%clk 0:00:02.1]} 53... Qc3+ {[%clk
0:00:03]} 54. Bxc3 {[%clk 0:00:01.9]} 54... Ke8 {[%clk 0:00:03.9]} 55. Qh8+
{[%clk 0:00:02.8]} 1-0

[Event "*** Titled Tuesday Blitz"]
[Site "Chess.com"]
[Date "2020.04.07"]
[Round "3"]
[White "AustrianFalcon"]
[Black "Chessmatus"]
[Result "1-0"]
[WhiteElo "2606"]
[BlackElo "2370"]
[TimeControl "180+1"]
[EndTime "13:31:13 PDT"]
[Termination "AustrianFalcon won by resignation"]

1. e4 {[%clk 0:03:00.9]} 1... e5 {[%clk 0:02:56.5]} 2. Nf3 {[%clk 0:02:52.4]}
2... Nc6 {[%clk 0:02:56.1]} 3. Bb5 {[%clk 0:02:49.6]} 3... Nf6 {[%clk
0:02:56.1]} 4. O-O {[%clk 0:02:47.6]} 4... Nxe4 {[%clk 0:02:55.9]} 5. Re1 {[%clk
0:02:46.7]} 5... Nd6 {[%clk 0:02:55.7]} 6. Nxe5 {[%clk 0:02:46.1]} 6... Be7
{[%clk 0:02:55.9]} 7. Bf1 {[%clk 0:02:46.3]} 7... Nxe5 {[%clk 0:02:56]} 8. Rxe5
{[%clk 0:02:47.2]} 8... O-O {[%clk 0:02:56.3]} 9. d4 {[%clk 0:02:47.9]} 9... Bf6
{[%clk 0:02:56.1]} 10. Re1 {[%clk 0:02:48]} 10... Nf5 {[%clk 0:02:56.1]} 11. d5
{[%clk 0:02:48]} 11... Re8 {[%clk 0:02:56.4]} 12. Nd2 {[%clk 0:02:47.9]} 12...
d6 {[%clk 0:02:28.4]} 13. c3 {[%clk 0:02:46.1]} 13... Bg5 {[%clk 0:02:14.1]} 14.
Ne4 {[%clk 0:02:40.2]} 14... Bxc1 {[%clk 0:02:13]} 15. Rxc1 {[%clk 0:02:39]}
15... Bd7 {[%clk 0:02:12.4]} 16. Qd2 {[%clk 0:02:15.3]} 16... Qh4 {[%clk
0:01:36.8]} 17. g3 {[%clk 0:02:14.4]} 17... Qh6 {[%clk 0:01:37]} 18. f4 {[%clk
0:02:01.3]} 18... Qg6 {[%clk 0:01:28.2]} 19. Ng5 {[%clk 0:01:49.6]} 19... h6
{[%clk 0:01:09.5]} 20. Nf3 {[%clk 0:01:45.3]} 20... Qf6 {[%clk 0:01:03.6]} 21.
Rxe8+ {[%clk 0:01:42]} 21... Rxe8 {[%clk 0:01:02.7]} 22. Re1 {[%clk 0:01:42.9]}
22... Rxe1 {[%clk 0:01:00.7]} 23. Qxe1 {[%clk 0:01:43.1]} 23... Qe7 {[%clk
0:01:00.9]} 24. Kf2 {[%clk 0:01:33.7]} 24... Qxe1+ {[%clk 0:00:57.8]} 25. Nxe1
{[%clk 0:01:30.8]} 25... h5 {[%clk 0:00:50.6]} 26. Nc2 {[%clk 0:01:30.1]} 26...
Kf8 {[%clk 0:00:49.1]} 27. Bd3 {[%clk 0:01:26]} 27... Ne7 {[%clk 0:00:43.2]} 28.
Ne3 {[%clk 0:01:25.4]} 28... c6 {[%clk 0:00:41.6]} 29. dxc6 {[%clk 0:01:24.2]}
29... bxc6 {[%clk 0:00:38.6]} 30. b4 {[%clk 0:01:22]} 30... g6 {[%clk
0:00:38.4]} 31. a4 {[%clk 0:01:21.2]} 31... Ke8 {[%clk 0:00:35.6]} 32. Nc4
{[%clk 0:01:13]} 32... Nc8 {[%clk 0:00:34.8]} 33. a5 {[%clk 0:01:10.8]} 33...
Kd8 {[%clk 0:00:34]} 34. Nd2 {[%clk 0:01:08.8]} 34... Kc7 {[%clk 0:00:32]} 35.
Ne4 {[%clk 0:01:07.5]} 35... Bf5 {[%clk 0:00:31.3]} 36. Ke3 {[%clk 0:01:07.3]}
36... d5 {[%clk 0:00:24.8]} 37. Ng5 {[%clk 0:01:06.2]} 37... Bxd3 {[%clk
0:00:24.7]} 38. Kxd3 {[%clk 0:01:06]} 38... Nd6 {[%clk 0:00:25.2]} 39. Kd4
{[%clk 0:01:03.7]} 39... Nb5+ {[%clk 0:00:24.7]} 40. Kd3 {[%clk 0:01:00.7]}
40... Nd6 {[%clk 0:00:24.8]} 41. Nf3 {[%clk 0:00:58.2]} 41... Kd7 {[%clk
0:00:20.6]} 42. Ne5+ {[%clk 0:00:58.1]} 42... Kc7 {[%clk 0:00:21.1]} 43. h3
{[%clk 0:00:58]} 43... Kb7 {[%clk 0:00:20]} 44. g4 {[%clk 0:00:58.1]} 44... hxg4
{[%clk 0:00:20.5]} 45. hxg4 {[%clk 0:00:59]} 45... Kc7 {[%clk 0:00:21]} 46. g5
{[%clk 0:00:56.4]} 46... Kb7 {[%clk 0:00:21.3]} 47. c4 {[%clk 0:00:50.6]} 47...
dxc4+ {[%clk 0:00:20.8]} 48. Nxc4 {[%clk 0:00:51.5]} 48... Nf5 {[%clk
0:00:19.6]} 49. Ne5 {[%clk 0:00:51.3]} 49... Nd6 {[%clk 0:00:18.7]} 50. Kd4
{[%clk 0:00:50.8]} 50... Kc7 {[%clk 0:00:19.1]} 51. Kc5 {[%clk 0:00:49.3]} 51...
Nb7+ {[%clk 0:00:19.3]} 52. Kd4 {[%clk 0:00:49]} 52... Nd6 {[%clk 0:00:19.8]}
53. Nd3 {[%clk 0:00:46.4]} 53... Kd7 {[%clk 0:00:18.6]} 54. Nc5+ {[%clk
0:00:46.5]} 54... Ke7 {[%clk 0:00:18.9]} 55. Nb3 {[%clk 0:00:42.4]} 55... Kd7
{[%clk 0:00:18.9]} 56. Nd2 {[%clk 0:00:42.6]} 56... Kc7 {[%clk 0:00:19]} 57. Ke5
{[%clk 0:00:40.6]} 57... Ne8 {[%clk 0:00:19.2]} 58. Ne4 {[%clk 0:00:40.2]} 58...
Kd7 {[%clk 0:00:19.5]} 59. Nf6+ {[%clk 0:00:33.7]} 59... Nxf6 {[%clk 0:00:19.7]}
60. Kxf6 {[%clk 0:00:34.4]} 60... Ke8 {[%clk 0:00:20.1]} 61. Ke5 {[%clk
0:00:26.7]} 61... Ke7 {[%clk 0:00:20.4]} 62. a6 {[%clk 0:00:24.9]} 62... Kd7
{[%clk 0:00:18]} 63. Kf6 {[%clk 0:00:23.8]} 63... Ke8 {[%clk 0:00:18.3]} 64. f5
{[%clk 0:00:24.4]} 64... gxf5 {[%clk 0:00:18.2]} 65. Kxf5 {[%clk 0:00:25.3]}
65... Ke7 {[%clk 0:00:17.8]} 66. Ke5 {[%clk 0:00:25.2]} 66... Kd7 {[%clk
0:00:18.2]} 67. Kf6 {[%clk 0:00:25.2]} 67... Ke8 {[%clk 0:00:18.5]} 68. Kg7
{[%clk 0:00:25.6]} 68... Ke7 {[%clk 0:00:18.4]} 69. Kg8 {[%clk 0:00:24.1]} 69...
Ke6 {[%clk 0:00:18.3]} 70. Kf8 {[%clk 0:00:24.3]} 70... Kf5 {[%clk 0:00:10.4]}
71. Kxf7 {[%clk 0:00:22.9]} 71... Kxg5 {[%clk 0:00:10.9]} 72. Ke6 {[%clk
0:00:23.2]} 72... Kf4 {[%clk 0:00:10.7]} 73. Kd6 {[%clk 0:00:23.4]} 73... Ke4
{[%clk 0:00:11]} 74. Kxc6 {[%clk 0:00:23.8]} 74... Ke5 {[%clk 0:00:11.5]} 75. b5
{[%clk 0:00:23.8]} 75... Ke6 {[%clk 0:00:11.4]} 76. b6 {[%clk 0:00:24.2]} 76...
axb6 {[%clk 0:00:12.3]} 77. a7 {[%clk 0:00:24.9]} 1-0

[Event "*** Titled Tuesday Blitz"]
[Site "Chess.com"]
[Date "2020.04.07"]
[Round "3"]
[White "chessintuit"]
[Black "Vusatiuk_Vladimir"]
[Result "1-0"]
[WhiteElo "2608"]
[BlackElo "2379"]
[TimeControl "180+1"]
[EndTime "13:31:17 PDT"]
[Termination "chessintuit won by resignation"]

1. e4 {[%clk 0:03:00.9]} 1... c5 {[%clk 0:03:00]} 2. Nf3 {[%clk 0:02:54.1]} 2...
Nc6 {[%clk 0:03:00]} 3. d4 {[%clk 0:02:48.7]} 3... cxd4 {[%clk 0:03:00.5]} 4.
Nxd4 {[%clk 0:02:49.6]} 4... e5 {[%clk 0:02:59.8]} 5. Nb5 {[%clk 0:02:49.5]}
5... d6 {[%clk 0:03:00]} 6. N1c3 {[%clk 0:02:49.5]} 6... a6 {[%clk 0:02:59.2]}
7. Na3 {[%clk 0:02:49.2]} 7... b5 {[%clk 0:02:59.7]} 8. Nd5 {[%clk 0:02:48.5]}
8... Nf6 {[%clk 0:03:00.2]} 9. Bg5 {[%clk 0:02:45.9]} 9... Be7 {[%clk
0:03:00.6]} 10. Bxf6 {[%clk 0:02:44.7]} 10... Bxf6 {[%clk 0:03:00.9]} 11. c3
{[%clk 0:02:43]} 11... O-O {[%clk 0:03:00.1]} 12. Nc2 {[%clk 0:02:43.5]} 12...
Rb8 {[%clk 0:03:00.4]} 13. Ncb4 {[%clk 0:02:40.8]} 13... Bb7 {[%clk 0:02:39.4]}
14. Bd3 {[%clk 0:02:26.5]} 14... a5 {[%clk 0:02:34]} 15. Nxc6 {[%clk 0:02:26.1]}
15... Bxc6 {[%clk 0:02:34.9]} 16. O-O {[%clk 0:02:25.7]} 16... g6 {[%clk
0:02:32.7]} 17. c4 {[%clk 0:02:05.8]} 17... Bxd5 {[%clk 0:02:28.7]} 18. cxd5
{[%clk 0:02:03.5]} 18... Bg5 {[%clk 0:02:21.7]} 19. Qe2 {[%clk 0:01:51.8]} 19...
Qb6 {[%clk 0:02:19.4]} 20. b3 {[%clk 0:01:33]} 20... Rfc8 {[%clk 0:02:14]} 21.
a4 {[%clk 0:01:32.5]} 21... b4 {[%clk 0:02:06.5]} 22. Bc4 {[%clk 0:01:31.5]}
22... Rf8 {[%clk 0:02:03.8]} 23. Ra2 {[%clk 0:01:29]} 23... f5 {[%clk
0:02:00.8]} 24. exf5 {[%clk 0:01:17.1]} 24... gxf5 {[%clk 0:01:59.3]} 25. Rc2
{[%clk 0:01:12]} 25... e4 {[%clk 0:01:12.7]} 26. Ba6 {[%clk 0:01:06.4]} 26...
Qd4 {[%clk 0:01:05.7]} 27. Rc7 {[%clk 0:01:01.1]} 27... Qf6 {[%clk 0:00:53]} 28.
Bb5 {[%clk 0:00:33.4]} 28... Rf7 {[%clk 0:00:48.9]} 29. Qc4 {[%clk 0:00:27.6]}
29... Qd8 {[%clk 0:00:31.2]} 30. Rxf7 {[%clk 0:00:24.5]} 30... Kxf7 {[%clk
0:00:32.1]} 31. Qd4 {[%clk 0:00:22.6]} 31... Qe7 {[%clk 0:00:25.5]} 32. Re1
{[%clk 0:00:14.5]} 32... Rc8 {[%clk 0:00:25.2]} 33. f3 {[%clk 0:00:14.5]} 33...
e3 {[%clk 0:00:22.1]} 34. f4 {[%clk 0:00:14.4]} 34... Bf6 {[%clk 0:00:20.3]} 35.
Qd3 {[%clk 0:00:13.2]} 35... Rc3 {[%clk 0:00:19.7]} 36. Qxf5 {[%clk 0:00:12.7]}
36... Kg7 {[%clk 0:00:19]} 37. Qg4+ {[%clk 0:00:12.5]} 37... Kh8 {[%clk
0:00:18.6]} 38. Bc4 {[%clk 0:00:13]} 38... Bd4 {[%clk 0:00:17.4]} 39. h3 {[%clk
0:00:12.6]} 39... Rc2 {[%clk 0:00:15.8]} 40. Re2 {[%clk 0:00:11.7]} 40... Rc1+
{[%clk 0:00:15.5]} 41. Kh2 {[%clk 0:00:11.4]} 41... Qf7 {[%clk 0:00:15.3]} 42.
f5 {[%clk 0:00:11.3]} 42... Be5+ {[%clk 0:00:13.7]} 43. g3 {[%clk 0:00:11.5]}
43... Rc3 {[%clk 0:00:12.7]} 44. Qe4 {[%clk 0:00:10.9]} 44... Qg7 {[%clk
0:00:12.6]} 45. Qf3 {[%clk 0:00:11.2]} 45... Qh6 {[%clk 0:00:11.7]} 46. Kg2
{[%clk 0:00:11.1]} 46... Bd4 {[%clk 0:00:10.9]} 47. Qe4 {[%clk 0:00:10.5]} 47...
Be5 {[%clk 0:00:11.5]} 48. Qg4 {[%clk 0:00:10.4]} 48... Qf6 {[%clk 0:00:10.7]}
49. Qf3 {[%clk 0:00:10]} 49... Qg5 {[%clk 0:00:10.4]} 50. h4 {[%clk 0:00:07.4]}
50... Qh6 {[%clk 0:00:10.7]} 51. Qg4 {[%clk 0:00:07.6]} 51... Qf6 {[%clk
0:00:10.6]} 52. Qg5 {[%clk 0:00:07.7]} 52... Qxg5 {[%clk 0:00:07.5]} 53. hxg5
{[%clk 0:00:08.6]} 53... Kg7 {[%clk 0:00:08.4]} 54. Kf3 {[%clk 0:00:09]} 54...
Bd4 {[%clk 0:00:07.1]} 55. Ke4 {[%clk 0:00:09.1]} 55... Bc5 {[%clk 0:00:06.8]}
56. Rh2 {[%clk 0:00:08.3]} 56... Rc1 {[%clk 0:00:06.8]} 57. f6+ {[%clk
0:00:07.6]} 57... Kg6 {[%clk 0:00:07.7]} 58. Be2 {[%clk 0:00:06.6]} 58... Rg1
{[%clk 0:00:06.2]} 59. Rh6+ {[%clk 0:00:06.6]} 59... Kxg5 {[%clk 0:00:06.1]} 60.
f7 {[%clk 0:00:06.9]} 60... Kxh6 {[%clk 0:00:04.2]} 61. f8=Q+ {[%clk 0:00:07.1]}
61... Kg6 {[%clk 0:00:04.4]} 62. Qf5+ {[%clk 0:00:07.4]} 62... Kg7 {[%clk
0:00:04.8]} 63. Qg5+ {[%clk 0:00:07.9]} 63... Kf7 {[%clk 0:00:04.8]} 64. Qf5+
{[%clk 0:00:08]} 64... Kg7 {[%clk 0:00:05.1]} 65. Qd7+ {[%clk 0:00:08.4]} 65...
Kf6 {[%clk 0:00:04.9]} 66. Qd8+ {[%clk 0:00:08.6]} 66... Kg7 {[%clk 0:00:04.8]}
67. Kf3 {[%clk 0:00:09.1]} 67... Rh1 {[%clk 0:00:03.2]} 68. Qc7+ {[%clk
0:00:09]} 68... Kg6 {[%clk 0:00:03]} 69. Qxa5 {[%clk 0:00:09.6]} 69... Rh5
{[%clk 0:00:02.7]} 70. Qd8 {[%clk 0:00:09.2]} 70... Rxd5 {[%clk 0:00:02.5]} 71.
Qg8+ {[%clk 0:00:08.4]} 71... Kf6 {[%clk 0:00:02.9]} 72. Qxd5 {[%clk 0:00:09.3]}
1-0